lending/lending_fUSD_20241115
["ID","MTS","AMOUNT","RATE_DAILY","PERIOD"]
[342269675,1731689450784,-1843.34,9.899e-05,2]
[342269676,1731689450793,-582.65,9.899e-05,2]
[342269677,1731689450803,-4293.78,9.899e-05,2]
[342269678,1731689450812,-500.0,9.899e-05,2]
[342269679,1731689450823,-500.0,9.899e-05,2]
[342269680,1731689450832,-977.6,9.899e-05,2]
[342269681,1731689450842,-500.0,9.899e-05,2]
[342269682,1731689450852,-657.63,9.899e-05,2]
[342269683,1731689450861,-887.47,9.899e-05,2]
[342269684,1731689450871,-500.0,9.899e-05,2]
[342269685,1731689450880,-922.07,9.899e-05,2]
[342269686,1731689450890,-500.0,9.899e-05,2]
[342269687,1731689451018,-500.0,9.899e-05,2]
[342269688,1731689451030,-719.83,9.899e-05,2]
[342269689,1731689451040,-500.0,9.899e-05,2]
[342269690,1731689451049,-655.63,9.899e-05,2]
[342269691,1731689451058,-500.0,9.899e-05,2]
[342269692,1731689451068,-500.0,9.899e-05,2]
[342269693,1731689451077,-1305.12,9.899e-05,2]
[342269694,1731689451087,-500.0,9.899e-05,2]
[342269695,1731689451096,-500.0,9.899e-05,2]
[342269696,1731689451106,-500.0,9.899e-05,2]
[342269697,1731689451115,-4798.54,9.899e-05,2]
[342269698,1731689451125,-574.5,9.899e-05,2]
[342269699,1731689451135,-1927.35,9.899e-05,2]
[342269700,1731689451145,-980.17,9.899e-05,2]
[342269701,1731689451158,-500.0,9.899e-05,2]
[342269702,1731689451168,-1269.49,9.899e-05,2]
[342269703,1731689451178,-500.0,9.899e-05,2]
[342269704,1731689451187,-4207.19,9.899e-05,2]
[342269705,1731689451196,-610.22,9.899e-05,2]
[342269706,1731689451206,-500.0,9.899e-05,2]
[342269707,1731689451215,-1558.84,9.899e-05,2]
[342269708,1731689451224,-500.0,9.899e-05,2]
[342269709,1731689451234,-583.09,9.899e-05,2]
[342269710,1731689451243,-500.0,9.899e-05,2]
[342269711,1731689451253,-500.0,9.899e-05,2]
[342269712,1731689451262,-500.0,9.899e-05,2]
[342269713,1731689451271,-2573.1,9.899e-05,2]
[342269714,1731689451281,-500.0,9.899e-05,2]
[342269715,1731689451290,-1110.0,9.899e-05,2]
[342269716,1731689451299,-500.0,9.899e-05,2]
[342269717,1731689451310,-500.0,9.899e-05,2]
[342269718,1731689451319,-533.97,9.899e-05,2]
[342269719,1731689451329,-1257.39,9.899e-05,2]
[342269720,1731689451338,-1195.58,9.899e-05,2]
[342269721,1731689451348,-500.0,9.899e-05,2]
[342269722,1731689451357,-286.26335507,9.899e-05,2]
[342269723,1731689451367,-255.0,9.899e-05,2]
[342269724,1731689451377,-156.18672592,9.899e-05,2]
[342269725,1731689451387,-500.0,9.899e-05,2]
[342269726,1731689451396,-578.18,9.899e-05,2]
[342269727,1731689451412,-500.0,9.899e-05,2]
[342269728,1731689451422,-500.0,9.899e-05,2]
[342269729,1731689451432,-555.34,9.899e-05,2]
[342269730,1731689451445,-500.0,9.899e-05,2]
[342269731,1731689451454,-500.0,9.899e-05,2]
[342269732,1731689451464,-500.0,9.899e-05,2]
[342269733,1731689451474,-500.0,9.899e-05,2]
[342269734,1731689451483,-612.92,9.899e-05,2]
[342269735,1731689451492,-500.0,9.899e-05,2]
[342269736,1731689451502,-885.77,9.899e-05,2]
[342269737,1731689451511,-500.0,9.899e-05,2]
[342269738,1731689451523,-500.0,9.899e-05,2]
[342269739,1731689451532,-3018.75,9.899e-05,2]
[342269740,1731689451542,-1063.23,9.899e-05,2]
[342269741,1731689451551,-500.0,9.899e-05,2]
[342269742,1731689451560,-1654.49,9.899e-05,2]
[342269743,1731689451569,-500.0,9.899e-05,2]
[342269744,1731689451578,-2961.99,9.899e-05,2]
[342269745,1731689451589,-500.0,9.899e-05,2]
[342269746,1731689451599,-612.13,9.899e-05,2]
[342269747,1731689451608,-205.39218062,9.899e-05,2]
[342269748,1731689451617,-1086.16,9.899e-05,2]
[342269749,1731689451627,-957.14,9.899e-05,2]
[342269750,1731689451637,-2234.52,9.899e-05,2]
[342269751,1731689451647,-500.0,9.899e-05,2]
[342269752,1731689451659,-500.0,9.899e-05,2]
[342269753,1731689451668,-500.0,9.899e-05,2]
[342269754,1731689451679,-500.0,9.899e-05,2]
[342269755,1731689451688,-587.04,9.899e-05,2]
[342269756,1731689451698,-292.40974979,9.899e-05,2]
[342269757,1731689451707,-500.0,9.899e-05,2]
[342269758,1731689451717,-504.18,9.899e-05,2]
[342269759,1731689451727,-500.0,9.899e-05,2]
[342269760,1731689451736,-500.0,9.899e-05,2]
[342269761,1731689451746,-1432.99,9.899e-05,2]
[342269762,1731689451756,-1649.92,9.899e-05,2]
[342269763,1731689451765,-1168.97,9.899e-05,2]
[342269764,1731689451774,-1521.41,9.899e-05,2]
[342269765,1731689451784,-715.65,9.899e-05,2]
[342269766,1731689451794,-500.0,9.899e-05,2]
[342269767,1731689451804,-588.20942827,9.899e-05,2]
[342269768,1731689451815,-500.0,9.899e-05,2]
[342269769,1731689451824,-875.6,9.899e-05,2]
[342269770,1731689451834,-500.0,9.899e-05,2]
[342269771,1731689451844,-500.0,9.899e-05,2]
[342269772,1731689451854,-500.0,9.899e-05,2]
[342269773,1731689451864,-1670.4,9.899e-05,2]
[342269774,1731689451873,-500.0,9.899e-05,2]
[342269775,1731689451883,-1234.51,9.899e-05,2]
[342269776,1731689451892,-500.0,9.899e-05,2]
[342269777,1731689451904,-500.0,9.899e-05,2]
[342269778,1731689451913,-500.0,9.899e-05,2]
[342269779,1731689451923,-1341.78,9.899e-05,2]
[342269780,1731689451934,-500.60201053,9.899e-05,2]
[342269781,1731689451943,-1304.39,9.899e-05,2]
[342269782,1731689451952,-977.9,9.899e-05,2]
[342269783,1731689451962,-500.0,9.899e-05,2]
[342269784,1731689451972,-1314.24,9.899e-05,2]
[342269785,1731689451982,-2576.38,9.899e-05,2]
[342269786,1731689451991,-500.0,9.899e-05,2]
[342269787,1731689452001,-674.79,9.899e-05,2]
[342269788,1731689452010,-500.0,9.899e-05,2]
[342269789,1731689452020,-1736.27,9.899e-05,2]
[342269790,1731689452030,-500.0,9.899e-05,2]
[342269791,1731689452040,-500.0,9.899e-05,2]
[342269792,1731689452049,-174.26917447,9.933e-05,2]
[342269793,1731689452059,-2224.366,9.941e-05,2]
[342269794,1731689452070,-368.6727556,9.988e-05,2]
[342269795,1731689452079,-377.0070341,9.989e-05,2]
[342269796,1731689452090,-487.8772626,9.991e-05,2]
[342269797,1731689452100,-491.292602,9.993e-05,2]
[342269798,1731689452110,-494.7079414,9.993e-05,2]
[342269799,1731689452120,-498.1232808,9.993e-05,2]
[342269800,1731689452130,-379.6462368,9.993e-05,2]
[342269801,1731689452140,-382.2854395,9.993e-05,2]
[342269802,1731689452153,-384.9246421,9.993e-05,2]
[342269803,1731689452163,-446.2099126,9.993e-05,2]
[342269804,1731689452173,-523.7470695,9.993e-05,2]
[342269805,1731689452182,-601.2842264,9.993e-05,2]
[342269806,1731689452191,-1195.17,9.995e-05,2]
[342269807,1731689452201,-500.0,9.995e-05,2]
[342269808,1731689452211,-500.0,9.995e-05,2]
[342269809,1731689452220,-2208.61,9.995e-05,2]
[342269810,1731689452230,-3174.52,9.995e-05,2]
[342269811,1731689452239,-708.28,9.995e-05,2]
[342269812,1731689452249,-500.0,9.995e-05,2]
[342269813,1731689452259,-437.64558419,9.995e-05,2]
[342269814,1731689452268,-500.0,9.995e-05,2]
[342269815,1731689452278,-670.89,9.995e-05,2]
[342269816,1731689452288,-500.0,9.995e-05,2]
[342269817,1731689452298,-500.0,9.995e-05,2]
[342269818,1731689452308,-2685.73,9.995e-05,2]
[342269819,1731689452318,-500.0,9.995e-05,2]
[342269820,1731689452328,-792.11,9.995e-05,2]
[342269821,1731689452337,-1710.11,9.995e-05,2]
[342269822,1731689452347,-500.0,9.995e-05,2]
[342269823,1731689452357,-500.0,9.995e-05,2]
[342269824,1731689452367,-1222.94,9.995e-05,2]
[342269825,1731689452377,-500.0,9.995e-05,2]
[342269826,1731689452387,-500.0,9.995e-05,2]
[342269827,1731689452397,-500.0,9.995e-05,2]
[342269828,1731689452411,-387.03474487,9.995e-05,2]
[342269829,1731689452421,-1257.82,9.995e-05,2]
[342269830,1731689452434,-500.0,9.995e-05,2]
[342269831,1731689452448,-1290.34,9.995e-05,2]
[342269832,1731689452458,-1514.57,9.995e-05,2]
[342269833,1731689452467,-783.12,9.995e-05,2]
[342269834,1731689452476,-500.0,9.995e-05,2]
[342269835,1731689452487,-1154.77,9.995e-05,2]
[342269836,1731689452496,-500.0,9.995e-05,2]
[342269837,1731689452507,-494.43566798,9.995e-05,2]
[342269838,1731689452517,-500.0,9.995e-05,2]
[342269839,1731689452526,-860.54,9.995e-05,2]
[342269840,1731689452536,-500.0,9.995e-05,2]
[342269841,1731689452546,-955.68,9.995e-05,2]
[342269842,1731689452555,-500.0,9.995e-05,2]
[342269843,1731689452568,-500.0,9.995e-05,2]
[342269844,1731689452578,-35854.03,9.995e-05,2]
[342269845,1731689452587,-500.0,9.995e-05,2]
[342269846,1731689452597,-1023.64,9.995e-05,2]
[342269847,1731689452607,-500.0,9.995e-05,2]
[342269848,1731689452616,-1136.29,9.995e-05,2]
[342269849,1731689452626,-500.0,9.995e-05,2]
[342269850,1731689452636,-1132.78,9.995e-05,2]
[342269851,1731689452645,-869.8,9.995e-05,2]
[342269852,1731689452662,-830.29,9.995e-05,2]
[342269853,1731689452673,-500.0,9.995e-05,2]
[342269854,1731689452682,-609.871381,9.995e-05,2]
[342269855,1731689452692,-1116.52,9.995e-05,2]
[342269856,1731689452702,-1043.12,9.995e-05,2]
[342269857,1731689452712,-1026.05,9.995e-05,2]
[342269858,1731689452723,-2836.49,9.995e-05,2]
[342269859,1731689452733,-500.0,9.995e-05,2]
[342269860,1731689452745,-1302.18,9.995e-05,2]
[342269861,1731689452755,-500.0,9.995e-05,2]
[342269862,1731689452765,-528.13,9.995e-05,2]
[342269863,1731689452775,-500.0,9.995e-05,2]
[342269864,1731689452785,-500.0,9.995e-05,2]
[342269865,1731689452796,-500.0,9.995e-05,2]
[342269866,1731689452806,-500.0,9.995e-05,2]
[342269867,1731689452816,-768.04,9.995e-05,2]
[342269868,1731689452826,-500.0,9.995e-05,2]
[342269869,1731689452836,-1020.14,9.995e-05,2]
[342269870,1731689452846,-1108.51,9.995e-05,2]
[342269871,1731689452856,-500.0,9.995e-05,2]
[342269872,1731689452866,-838.27,9.995e-05,2]
[342269873,1731689452876,-500.0,9.995e-05,2]
[342269874,1731689452886,-625.32,9.995e-05,2]
[342269875,1731689452895,-804.48,9.995e-05,2]
[342269876,1731689452914,-500.0,9.995e-05,2]
[342269877,1731689452924,-500.0,9.995e-05,2]
[342269878,1731689452934,-1613.24,9.995e-05,2]
[342269879,1731689452944,-500.0,9.995e-05,2]
[342269880,1731689452954,-1234.72,9.995e-05,2]
[342269881,1731689452963,-500.0,9.995e-05,2]
[342269882,1731689452973,-500.0,9.995e-05,2]
[342269883,1731689452982,-2467.96,9.995e-05,2]
[342269884,1731689452993,-2467.96,9.995e-05,2]
[342269885,1731689453002,-527.06226797,9.995e-05,2]
[342269886,1731689453012,-2467.96,9.995e-05,2]
[342269887,1731689453021,-1505.6,9.995e-05,2]
[342269888,1731689453031,-1505.6,9.995e-05,2]
[342269889,1731689453041,-1505.6,9.995e-05,2]
[342269890,1731689453335,-500.0,9.995e-05,2]
[342269891,1731689453398,-1505.6,9.995e-05,2]
[342269892,1731689453414,-500.0,9.995e-05,2]
[342269893,1731689453424,-1505.6,9.995e-05,2]
[342269894,1731689453434,-500.0,9.995e-05,2]
[342269895,1731689453449,-500.0,9.995e-05,2]
[342269896,1731689453458,-500.0,9.995e-05,2]
[342269897,1731689453468,-883.02,9.995e-05,2]
[342269898,1731689453478,-829.46,9.995e-05,2]
[342269899,1731689453488,-1259.43,9.995e-05,2]
[342269900,1731689453498,-500.0,9.995e-05,2]
[342269901,1731689453508,-500.0,9.995e-05,2]
[342269902,1731689453521,-500.0,9.995e-05,2]
[342269903,1731689453531,-500.0,9.995e-05,2]
[342269904,1731689453540,-500.0,9.995e-05,2]
[342269905,1731689453550,-500.0,9.995e-05,2]
[342269906,1731689453559,-3044.76,9.995e-05,2]
[342269907,1731689453569,-3044.76,9.995e-05,2]
[342269908,1731689453578,-3044.76,9.995e-05,2]
[342269909,1731689453587,-1941.97,9.995e-05,2]
[342269910,1731689453597,-8148.24,9.995e-05,2]
[342269911,1731689453606,-912.98,9.995e-05,2]
[342269912,1731689453615,-8148.24,9.995e-05,2]
[342269913,1731689453625,-8148.24,9.995e-05,2]
[342269914,1731689453633,-8148.24,9.995e-05,2]
[342269915,1731689453643,-8148.24,9.995e-05,2]
[342269916,1731689453657,-1132.37,9.995e-05,2]
[342269917,1731689453666,-1393.9,9.995e-05,2]
[342269918,1731689453676,-500.0,9.995e-05,2]
[342269919,1731689453686,-500.0,9.995e-05,2]
[342269920,1731689453696,-1647.9,9.995e-05,2]
[342269921,1731689453705,-1647.9,9.995e-05,2]
[342269922,1731689453714,-1647.9,9.995e-05,2]
[342269923,1731689453723,-1647.9,9.995e-05,2]
[342269924,1731689453733,-516.86,9.995e-05,2]
[342269925,1731689453743,-1647.9,9.995e-05,2]
[342269926,1731689453752,-1766.82,9.995e-05,2]
[342269927,1731689453762,-1674.65,9.995e-05,2]
[342269928,1731689453772,-1674.65,9.995e-05,2]
[342269929,1731689453782,-1213.05,9.995e-05,2]
[342269930,1731689453792,-1674.65,9.995e-05,2]
[342269931,1731689453802,-1667.36,9.995e-05,2]
[342269932,1731689453811,-1789.03,9.995e-05,2]
[342269933,1731689453820,-500.0,9.995e-05,2]
[342269934,1731689453830,-8622.02,9.995e-05,2]
[342269935,1731689453840,-8622.02,9.995e-05,2]
[342269936,1731689453849,-8622.02,9.995e-05,2]
[342269937,1731689453859,-8622.02,9.995e-05,2]
[342269938,1731689453869,-8622.02,9.995e-05,2]
[342269939,1731689453879,-7987.11,9.995e-05,2]
[342269940,1731689453888,-535.23,9.995e-05,2]
[342269941,1731689453898,-500.0,9.995e-05,2]
[342269942,1731689453914,-2052.01,9.995e-05,2]
[342269943,1731689453924,-2143.12,9.995e-05,2]
[342269944,1731689453933,-1177.13,9.995e-05,2]
[342269945,1731689453943,-500.0,9.995e-05,2]
[342269946,1731689453953,-1177.13,9.995e-05,2]
[342269947,1731689453963,-1177.13,9.995e-05,2]
[342269948,1731689453972,-16470.0,9.995e-05,2]
[342269949,1731689453982,-2630.99,9.995e-05,2]
[342269950,1731689453991,-500.0,9.995e-05,2]
[342269951,1731689454001,-500.0,9.995e-05,2]
[342269952,1731689454011,-500.0,9.995e-05,2]
[342269953,1731689454020,-500.0,9.995e-05,2]
[342269954,1731689454030,-500.0,9.995e-05,2]
[342269955,1731689454039,-500.0,9.995e-05,2]
[342269956,1731689454048,-500.0,9.995e-05,2]
[342269957,1731689454059,-1039.74,9.995e-05,2]
[342269958,1731689454068,-1645.12,9.995e-05,2]
[342269959,1731689454078,-500.0,9.995e-05,2]
[342269960,1731689454087,-500.0,9.995e-05,2]
[342269961,1731689454097,-600.02010449,9.995e-05,2]
[342269962,1731689454107,-500.0,9.995e-05,2]
[342269963,1731689454117,-18048.89,9.995e-05,2]
[342269964,1731689454126,-863.27,9.995e-05,2]
[342269965,1731689454135,-500.0,9.995e-05,2]
[342269966,1731689454144,-500.0,9.995e-05,2]
[342269967,1731689454159,-500.0,9.995e-05,2]
[342269968,1731689454168,-500.0,9.995e-05,2]
[342269969,1731689454178,-2576.99,9.995e-05,2]
[342269970,1731689454188,-1018.92,9.995e-05,2]
[342269971,1731689454198,-1013.26,9.995e-05,2]
[342269972,1731689454207,-2051.34,9.995e-05,2]
[342269973,1731689454217,-2051.34,9.995e-05,2]
[342269974,1731689454227,-2051.34,9.995e-05,2]
[342269975,1731689454236,-500.0,9.995e-05,2]
[342269976,1731689454246,-2913.84,9.995e-05,2]
[342269977,1731689454256,-2913.84,9.995e-05,2]
[342269978,1731689454265,-2913.84,9.995e-05,2]
[342269979,1731689454275,-2913.84,9.995e-05,2]
[342269980,1731689454284,-2913.84,9.995e-05,2]
[342269981,1731689454294,-500.0,9.995e-05,2]
[342269982,1731689454303,-1136.79,9.995e-05,2]
[342269983,1731689454313,-1470.32,9.995e-05,2]
[342269984,1731689454323,-500.0,9.995e-05,2]
[342269985,1731689454332,-17890.25,9.995e-05,2]
[342269986,1731689454342,-500.0,9.995e-05,2]
[342269987,1731689454352,-500.0,9.995e-05,2]
[342269988,1731689454361,-500.0,9.995e-05,2]
[342269989,1731689454370,-500.0,9.995e-05,2]
[342269990,1731689454380,-500.0,9.995e-05,2]
[342269991,1731689454389,-500.0,9.995e-05,2]
[342269992,1731689454404,-536.58,9.995e-05,2]
[342269993,1731689454413,-536.58,9.995e-05,2]
[342269994,1731689454423,-536.58,9.995e-05,2]
[342269995,1731689454433,-536.58,9.995e-05,2]
[342269996,1731689454446,-536.58,9.995e-05,2]
[342269997,1731689454456,-599.5,9.995e-05,2]
[342269998,1731689454465,-597.04,9.995e-05,2]
[342269999,1731689454475,-5772.3,9.995e-05,2]
[342270000,1731689454486,-2179.86,9.995e-05,2]
[342270001,1731689454495,-2179.86,9.995e-05,2]
[342270002,1731689454505,-2179.86,9.995e-05,2]
[342270003,1731689454514,-2179.86,9.995e-05,2]
[342270004,1731689454526,-2179.86,9.995e-05,2]
[342270005,1731689454537,-500.0,9.995e-05,2]
[342270006,1731689454547,-500.0,9.995e-05,2]
[342270007,1731689454556,-500.0,9.995e-05,2]
[342270008,1731689454566,-500.0,9.995e-05,2]
[342270009,1731689454576,-1215.88,9.995e-05,2]
[342270010,1731689454585,-1797.79,9.995e-05,2]
[342270011,1731689454595,-1797.79,9.995e-05,2]
[342270012,1731689454604,-1797.79,9.995e-05,2]
[342270013,1731689454613,-3148.44,9.995e-05,2]
[342270014,1731689454622,-898.45,9.995e-05,2]
[342270015,1731689454632,-3148.44,9.995e-05,2]
[342270016,1731689454641,-898.45,9.995e-05,2]
[342270017,1731689454653,-3148.44,9.995e-05,2]
[342270018,1731689454662,-3148.44,9.995e-05,2]
[342270019,1731689454671,-898.45,9.995e-05,2]
[342270020,1731689454681,-898.45,9.995e-05,2]
[342270021,1731689454690,-3148.44,9.995e-05,2]
[342270022,1731689454700,-898.45,9.995e-05,2]
[342270023,1731689454710,-4103.69,9.995e-05,2]
[342270024,1731689454719,-4103.69,9.995e-05,2]
[342270025,1731689454729,-4103.69,9.995e-05,2]
[342270026,1731689454739,-4103.69,9.995e-05,2]
[342270027,1731689454750,-4103.69,9.995e-05,2]
[342270028,1731689454760,-605.55,9.995e-05,2]
[342270029,1731689454769,-500.0,9.995e-05,2]
[342270030,1731689454779,-500.0,9.995e-05,2]
[342270031,1731689454789,-500.0,9.995e-05,2]
[342270032,1731689454799,-1363.9,9.995e-05,2]
[342270033,1731689454809,-500.0,9.995e-05,2]
[342270034,1731689454818,-159.51973035,9.995e-05,2]
[342270035,1731689454828,-500.0,9.995e-05,2]
[342270036,1731689454838,-7238.35,9.995e-05,2]
[342270037,1731689454847,-7238.35,9.995e-05,2]
[342270038,1731689454857,-500.0,9.996e-05,2]
[342270039,1731689454867,-500.0,9.996e-05,2]
[342270040,1731689454877,-500.5433419,9.996e-05,2]
[342270041,1731689454888,-500.0,9.996e-05,2]
[342270042,1731689454898,-500.0,9.996e-05,2]
[342270043,1731689454910,-500.0,9.996e-05,2]
[342270044,1731689454920,-500.0,9.996e-05,2]
[342270045,1731689454929,-500.0,9.996e-05,2]
[342270046,1731689454939,-500.0,9.996e-05,2]
[342270047,1731689454949,-500.0,9.996e-05,2]
[342270048,1731689454959,-2915.3,9.996e-05,2]
[342270049,1731689454970,-500.0,9.996e-05,2]
[342270050,1731689454979,-500.0,9.996e-05,2]
[342270051,1731689454990,-500.0,9.996e-05,2]
[342270052,1731689455000,-1098.0,9.996e-05,2]
[342270053,1731689455010,-500.0,9.996e-05,2]
[342270054,1731689455019,-1441.75,9.996e-05,2]
[342270055,1731689455029,-500.0,9.996e-05,2]
[342270056,1731689455039,-500.0,9.996e-05,2]
[342270057,1731689455049,-3477.36,9.996e-05,2]
[342270058,1731689455059,-500.0,9.996e-05,2]
[342270059,1731689455068,-500.0,9.996e-05,2]
[342270060,1731689455078,-500.0,9.996e-05,2]
[342270061,1731689455087,-1195.72,9.996e-05,2]
[342270062,1731689455097,-500.0,9.996e-05,2]
[342270063,1731689455107,-20000.0,9.996e-05,2]
[342270064,1731689455117,-500.0,9.996e-05,2]
[342270065,1731689455127,-4171.04,9.996e-05,2]
[342270066,1731689455136,-500.0,9.996e-05,2]
[342270067,1731689455146,-500.0,9.996e-05,2]
[342270068,1731689455157,-500.0,9.996e-05,2]
[342270069,1731689455166,-1590.07,9.996e-05,2]
[342270070,1731689455176,-500.0,9.996e-05,2]
[342270071,1731689455186,-500.0,9.996e-05,2]
[342270072,1731689455195,-2127.69,9.996e-05,2]
[342270073,1731689455205,-500.0,9.996e-05,2]
[342270074,1731689455215,-1842.16,9.996e-05,2]
[342270075,1731689455224,-500.0,9.996e-05,2]
[342270076,1731689455233,-2957.82,9.996e-05,2]
[342270077,1731689455243,-1023.03,9.996e-05,2]
[342270078,1731689455252,-500.0,9.996e-05,2]
[342270079,1731689455262,-500.0,9.996e-05,2]
[342270080,1731689455271,-500.0,9.996e-05,2]
[342270081,1731689455281,-500.0,9.996e-05,2]
[342270082,1731689455291,-3079.35,9.996e-05,2]
[342270083,1731689455301,-828.71,9.996e-05,2]
[342270084,1731689455310,-500.0,9.996e-05,2]
[342270085,1731689455319,-500.0,9.996e-05,2]
[342270086,1731689455329,-500.0,9.996e-05,2]
[342270087,1731689455338,-666.99,9.996e-05,2]
[342270088,1731689455348,-500.0,9.996e-05,2]
[342270089,1731689455357,-500.0,9.996e-05,2]
[342270090,1731689455367,-500.0,9.996e-05,2]
[342270091,1731689455376,-500.0,9.996e-05,2]
[342270092,1731689455387,-1022.11,9.996e-05,2]
[342270093,1731689455396,-500.0,9.996e-05,2]
[342270094,1731689455408,-500.0,9.996e-05,2]
[342270095,1731689455417,-500.0,9.996e-05,2]
[342270096,1731689455427,-500.0,9.996e-05,2]
[342270097,1731689455436,-500.0,9.996e-05,2]
[342270098,1731689455450,-500.0,9.996e-05,2]
[342270099,1731689455460,-500.0,9.996e-05,2]
[342270100,1731689455469,-1155.25,9.996e-05,2]
[342270101,1731689455478,-987.99,9.996e-05,2]
[342270102,1731689455489,-500.0,9.996e-05,2]
[342270103,1731689455498,-500.0,9.996e-05,2]
[342270104,1731689455508,-1683.44,9.996e-05,2]
[342270105,1731689455519,-750.76,9.996e-05,2]
[342270106,1731689455528,-500.0,9.996e-05,2]
[342270107,1731689455538,-500.0,9.996e-05,2]
[342270108,1731689455548,-604.6,9.996e-05,2]
[342270109,1731689455558,-1511.6,9.996e-05,2]
[342270110,1731689455567,-500.0,9.996e-05,2]
[342270111,1731689455576,-2867.32,9.996e-05,2]
[342270112,1731689455585,-1402.2,9.996e-05,2]
[342270113,1731689455595,-500.0,9.996e-05,2]
[342270114,1731689455604,-500.76836259,9.996e-05,2]
[342270115,1731689455614,-500.0,9.996e-05,2]
[342270116,1731689455623,-500.0,9.996e-05,2]
[342270117,1731689455633,-500.0,9.996e-05,2]
[342270118,1731689455642,-1072.07,9.996e-05,2]
[342270119,1731689455654,-926.59,9.996e-05,2]
[342270120,1731689455663,-500.0,9.996e-05,2]
[342270121,1731689455673,-2568.76,9.996e-05,2]
[342270122,1731689455683,-1125.83,9.996e-05,2]
[342270123,1731689455693,-500.0,9.996e-05,2]
[342270124,1731689455703,-1541.47,9.996e-05,2]
[342270125,1731689455714,-1195.17,9.996e-05,2]
[342270126,1731689455724,-1195.17,9.996e-05,2]
[342270127,1731689455734,-1195.17,9.996e-05,2]
[342270128,1731689455744,-500.0,9.996e-05,2]
[342270129,1731689455848,-1195.17,9.996e-05,2]
[342270130,1731689455859,-500.0,9.996e-05,2]
[342270131,1731689455869,-1195.17,9.996e-05,2]
[342270132,1731689455878,-500.0,9.996e-05,2]
[342270133,1731689455887,-1195.17,9.996e-05,2]
[342270134,1731689455896,-1195.17,9.996e-05,2]
[342270135,1731689455912,-500.0,9.996e-05,2]
[342270136,1731689455922,-500.0,9.996e-05,2]
[342270137,1731689455931,-1195.17,9.996e-05,2]
[342270138,1731689455942,-500.0,9.996e-05,2]
[342270139,1731689455951,-888.38,9.996e-05,2]
[342270140,1731689455961,-500.0,9.996e-05,2]
[342270141,1731689455971,-500.0,9.996e-05,2]
[342270142,1731689455980,-500.0,9.996e-05,2]
[342270143,1731689455990,-598.48,9.996e-05,2]
[342270144,1731689456000,-500.0,9.996e-05,2]
[342270145,1731689456009,-500.0,9.996e-05,2]
[342270146,1731689456019,-500.0,9.996e-05,2]
[342270147,1731689456028,-500.0,9.996e-05,2]
[342270148,1731689456037,-500.0,9.996e-05,2]
[342270149,1731689456046,-500.0,9.996e-05,2]
[342270150,1731689456055,-500.0,9.996e-05,2]
[342270151,1731689456065,-500.0,9.996e-05,2]
[342270152,1731689456074,-2208.61,9.996e-05,2]
[342270153,1731689456084,-500.0,9.996e-05,2]
[342270154,1731689456093,-2208.61,9.996e-05,2]
[342270155,1731689456103,-2208.61,9.996e-05,2]
[342270156,1731689456112,-2208.61,9.996e-05,2]
[342270157,1731689456122,-500.0,9.996e-05,2]
[342270158,1731689456132,-3174.52,9.996e-05,2]
[342270159,1731689456142,-3174.52,9.996e-05,2]
[342270160,1731689456157,-3174.52,9.996e-05,2]
[342270161,1731689456168,-3174.52,9.996e-05,2]
[342270162,1731689456179,-3174.52,9.996e-05,2]
[342270163,1731689456188,-708.28,9.996e-05,2]
[342270164,1731689456198,-708.28,9.996e-05,2]
[342270165,1731689456208,-3174.52,9.996e-05,2]
[342270166,1731689456218,-708.28,9.996e-05,2]
[342270167,1731689456228,-3174.52,9.996e-05,2]
[342270168,1731689456238,-708.28,9.996e-05,2]
[342270169,1731689456248,-500.15,9.996e-05,2]
[342270170,1731689456257,-708.28,9.996e-05,2]
[342270171,1731689456267,-3174.52,9.996e-05,2]
[342270172,1731689456276,-708.28,9.996e-05,2]
[342270173,1731689456286,-1436.04,9.996e-05,2]
[342270174,1731689456296,-708.28,9.996e-05,2]